[Event "Titled Tuesday Blitz October 04 Early 2022"]
[White "Jobava, Baadur"]
[Black "Svane, Rasmus"]
[WhiteFideId "13601520"]
[BlackFideId "4657101"]
[WhiteElo "2582"]
[BlackElo "2674"]
[Result "0-1"]
[Round "11"]
[TimeControl "180+1"]
[Date "2022.10.04"]
[WhiteClock "0:00:07"]
[BlackClock "0:00:13"]

1. e4 {[%clk 0:03:00]}  c6 {[%clk 0:02:58]} 2. d4 {[%clk 0:02:59]}  d5 {[%clk 0:02:59]} 3. exd5 {[%clk 0:03:00]}  cxd5 {[%clk 0:03:00]} 4. c4 {[%clk 0:03:01]}  Nf6 {[%clk 0:03:00]} 5. Nc3 {[%clk 0:03:02]}  Nc6 {[%clk 0:03:01]} 6. Nf3 {[%clk 0:03:01]}  a6 {[%clk 0:03:01]} 7. c5 {[%clk 0:02:57]}  g6 {[%clk 0:03:00]} 8. h3 {[%clk 0:02:56]}  Bg7 {[%clk 0:03:00]} 9. Bd3 {[%clk 0:02:56]}  O-O {[%clk 0:02:54]} 10. O-O {[%clk 0:02:56]}  b6 {[%clk 0:02:55]} 11. cxb6 {[%clk 0:02:40]}  Qxb6 {[%clk 0:02:55]} 12. Na4 {[%clk 0:02:41]}  Qa7 {[%clk 0:02:52]} 13. Be3 {[%clk 0:02:41]}  Nb4 {[%clk 0:02:43]} 14. Bb1 {[%clk 0:02:35]}  Bd7 {[%clk 0:02:28]} 15. a3 {[%clk 0:02:33]}  Nc6 {[%clk 0:02:23]} 16. b4 {[%clk 0:02:31]}  Rfc8 {[%clk 0:01:45]} 17. Nc5 {[%clk 0:02:31]}  Nd8 {[%clk 0:01:39]} 18. Bd3 {[%clk 0:02:28]}  Bb5 {[%clk 0:01:39]} 19. a4 {[%clk 0:02:23]}  Bxd3 {[%clk 0:01:39]} 20. Qxd3 {[%clk 0:02:24]}  Nb7 {[%clk 0:01:37]} 21. Rfc1 {[%clk 0:02:12]}  Nd6 {[%clk 0:01:36]} 22. Ne5 {[%clk 0:02:12]}  Nfe4 {[%clk 0:01:16]} 23. Bf4 {[%clk 0:01:33]}  a5 {[%clk 0:00:25]} 24. f3 {[%clk 0:01:24]}  Nxc5 {[%clk 0:00:21]} 25. bxc5 {[%clk 0:01:25]}  Nf5 {[%clk 0:00:17]} 26. g4 {[%clk 0:00:50]}  Nh4 {[%clk 0:00:10]} 27. Bg3 {[%clk 0:00:50]}  g5 {[%clk 0:00:09]} 28. c6 {[%clk 0:00:36]}  Ng6 {[%clk 0:00:09]} 29. Kg2 {[%clk 0:00:23]}  Bxe5 {[%clk 0:00:08]} 30. dxe5 {[%clk 0:00:23]}  e6 {[%clk 0:00:06]} 31. Ra2 {[%clk 0:00:23]}  Qa6 {[%clk 0:00:06]} 32. Qb5 {[%clk 0:00:19]}  Rcb8 {[%clk 0:00:05]} 33. Qxa6 {[%clk 0:00:18]}  Rxa6 {[%clk 0:00:06]} 34. Rac2 {[%clk 0:00:18]}  Rc8 {[%clk 0:00:06]} 35. c7 {[%clk 0:00:18]}  Ra7 {[%clk 0:00:06]} 36. Bf2 {[%clk 0:00:17]}  Rb7 {[%clk 0:00:06]} 37. Bd4 {[%clk 0:00:16]}  Kf8 {[%clk 0:00:06]} 38. Rc5 {[%clk 0:00:15]}  Ke8 {[%clk 0:00:06]} 39. Rxa5 {[%clk 0:00:15]}  Rbxc7 {[%clk 0:00:07]} 40. Rxc7 {[%clk 0:00:16]}  Rxc7 {[%clk 0:00:08]} 41. Kg3 {[%clk 0:00:11]}  Rc4 {[%clk 0:00:08]} 42. Ra8+ {[%clk 0:00:10]}  Kd7 {[%clk 0:00:08]} 43. Ra7+ {[%clk 0:00:11]}  Kc6 {[%clk 0:00:08]} 44. Be3 {[%clk 0:00:10]}  Rc3 {[%clk 0:00:04]} 45. Bxg5 {[%clk 0:00:08]}  Nxe5 {[%clk 0:00:05]} 46. Kf4 {[%clk 0:00:06]}  Nxf3 {[%clk 0:00:05]} 47. Bf6 {[%clk 0:00:06]}  d4 {[%clk 0:00:04]} 48. Rxf7 {[%clk 0:00:06]}  Kd6 {[%clk 0:00:04]} 49. Ke4 {[%clk 0:00:05]}  e5 {[%clk 0:00:04]} 50. Rxh7 {[%clk 0:00:06]}  Nd2+ {[%clk 0:00:05]} 51. Kf5 {[%clk 0:00:06]}  Rf3+ {[%clk 0:00:05]} 52. Kg6 {[%clk 0:00:07]}  Ne4 {[%clk 0:00:06]} 53. Bg7 {[%clk 0:00:06]}  d3 {[%clk 0:00:06]} 54. Rh8 {[%clk 0:00:06]}  Kd7 {[%clk 0:00:06]} 55. Rb8 {[%clk 0:00:04]}  d2 {[%clk 0:00:07]} 56. Rb1 {[%clk 0:00:04]}  Nc3 {[%clk 0:00:07]} 57. Ra1 {[%clk 0:00:03]}  Rxh3 {[%clk 0:00:07]} 58. Bxe5 {[%clk 0:00:02]}  d1=Q {[%clk 0:00:08]} 59. Rxd1+ {[%clk 0:00:03]}  Nxd1 {[%clk 0:00:09]} 60. g5 {[%clk 0:00:03]}  Ra3 {[%clk 0:00:09]} 61. Kf7 {[%clk 0:00:03]}  Rf3+ {[%clk 0:00:08]} 62. Bf6 {[%clk 0:00:03]}  Ne3 {[%clk 0:00:08]} 63. a5 {[%clk 0:00:04]}  Nd5 {[%clk 0:00:09]} 64. a6 {[%clk 0:00:04]}  Ra3 {[%clk 0:00:08]} 65. g6 {[%clk 0:00:04]}  Rxa6 {[%clk 0:00:07]} 66. Be5 {[%clk 0:00:04]}  Ne7 {[%clk 0:00:07]} 67. g7 {[%clk 0:00:04]}  Ra5 {[%clk 0:00:07]} 68. Bf6 {[%clk 0:00:04]}  Rf5 {[%clk 0:00:08]} 69. g8=Q {[%clk 0:00:02]}  Nxg8 {[%clk 0:00:08]} 70. Kg7 {[%clk 0:00:02]}  Rxf6 {[%clk 0:00:08]} 71. Kh8 {[%clk 0:00:03]}  Ke7 {[%clk 0:00:09]} 72. Kg7 {[%clk 0:00:03]}  Nh6 {[%clk 0:00:09]} 73. Kh7 {[%clk 0:00:03]}  Nf5 {[%clk 0:00:10]} 74. Kg8 {[%clk 0:00:04]}  Nd4 {[%clk 0:00:11]} 75. Kh8 {[%clk 0:00:05]}  Nb3 {[%clk 0:00:12]} 76. Kg7 {[%clk 0:00:05]}  Ke6 {[%clk 0:00:12]} 77. Kg8 {[%clk 0:00:06]}  Rf7 {[%clk 0:00:12]} 78. Kh8 {[%clk 0:00:07]}  Kf6 {[%clk 0:00:13]} 0-1


[Site "https://www.chess.com"]

[Event "Titled Tuesday Blitz October 04 Early 2022"]
[White "Jones, Gawain C B"]
[Black "Batsuren, Dambasuren"]
[WhiteFideId "409561"]
[BlackFideId "4902920"]
[WhiteElo "2657"]
[BlackElo "2422"]
[Result "1/2-1/2"]
[Round "11"]
[TimeControl "180+1"]
[Date "2022.10.04"]
[WhiteClock "0:00:02"]
[BlackClock "0:00:09"]

1. g3 {[%clk 0:03:00]}  Nf6 {[%clk 0:03:00]} 2. Bg2 {[%clk 0:02:59]}  d5 {[%clk 0:02:59]} 3. d4 {[%clk 0:02:59]}  e6 {[%clk 0:02:56]} 4. Nf3 {[%clk 0:02:58]}  Be7 {[%clk 0:02:57]} 5. c4 {[%clk 0:02:58]}  O-O {[%clk 0:02:57]} 6. O-O {[%clk 0:02:57]}  dxc4 {[%clk 0:02:57]} 7. Na3 {[%clk 0:02:57]}  c3 {[%clk 0:02:46]} 8. bxc3 {[%clk 0:02:57]}  c5 {[%clk 0:02:47]} 9. Ne5 {[%clk 0:02:55]}  Nbd7 {[%clk 0:02:38]} 10. Nxd7 {[%clk 0:02:51]}  Qxd7 {[%clk 0:02:30]} 11. Nc4 {[%clk 0:02:39]}  Nd5 {[%clk 0:02:19]} 12. Qd2 {[%clk 0:02:34]}  cxd4 {[%clk 0:02:09]} 13. cxd4 {[%clk 0:02:33]}  Qa4 {[%clk 0:02:07]} 14. Ne3 {[%clk 0:02:20]}  Bb4 {[%clk 0:02:04]} 15. Qd3 {[%clk 0:02:14]}  Bc3 {[%clk 0:01:44]} 16. Rb1 {[%clk 0:01:50]}  Qxd4 {[%clk 0:01:35]} 17. Rd1 {[%clk 0:01:39]}  Qxd3 {[%clk 0:00:50]} 18. Rxd3 {[%clk 0:01:40]}  Be5 {[%clk 0:00:50]} 19. Nxd5 {[%clk 0:01:37]}  exd5 {[%clk 0:00:51]} 20. Bxd5 {[%clk 0:01:33]}  Rb8 {[%clk 0:00:50]} 21. Ba3 {[%clk 0:01:20]}  Re8 {[%clk 0:00:50]} 22. f4 {[%clk 0:01:20]}  Bc7 {[%clk 0:00:43]} 23. e4 {[%clk 0:01:07]}  Be6 {[%clk 0:00:42]} 24. Bxe6 {[%clk 0:01:00]}  Rxe6 {[%clk 0:00:43]} 25. e5 {[%clk 0:00:58]}  f6 {[%clk 0:00:41]} 26. Rd7 {[%clk 0:00:50]}  Bb6+ {[%clk 0:00:40]} 27. Kg2 {[%clk 0:00:50]}  fxe5 {[%clk 0:00:41]} 28. Bd6 {[%clk 0:00:49]}  Rd8 {[%clk 0:00:35]} 29. Rxd8+ {[%clk 0:00:49]}  Bxd8 {[%clk 0:00:36]} 30. fxe5 {[%clk 0:00:49]}  b6 {[%clk 0:00:24]} 31. Rc1 {[%clk 0:00:45]}  Be7 {[%clk 0:00:24]} 32. Rc8+ {[%clk 0:00:44]}  Kf7 {[%clk 0:00:24]} 33. Rc7 {[%clk 0:00:44]}  Kf8 {[%clk 0:00:20]} 34. Rc8+ {[%clk 0:00:32]}  Kf7 {[%clk 0:00:20]} 35. Bb8 {[%clk 0:00:29]}  a6 {[%clk 0:00:17]} 36. Kf3 {[%clk 0:00:29]}  Rh6 {[%clk 0:00:14]} 37. h4 {[%clk 0:00:27]}  g5 {[%clk 0:00:14]} 38. hxg5 {[%clk 0:00:26]}  Bxg5 {[%clk 0:00:15]} 39. Kg4 {[%clk 0:00:25]}  Be7 {[%clk 0:00:14]} 40. Kf5 {[%clk 0:00:21]}  Rh5+ {[%clk 0:00:14]} 41. Ke4 {[%clk 0:00:21]}  Rh1 {[%clk 0:00:12]} 42. Bd6 {[%clk 0:00:18]}  Bxd6 {[%clk 0:00:11]} 43. exd6 {[%clk 0:00:17]}  Ke6 {[%clk 0:00:12]} 44. Rc6 {[%clk 0:00:12]}  Rb1 {[%clk 0:00:12]} 45. g4 {[%clk 0:00:08]}  Rb4+ {[%clk 0:00:12]} 46. Kf3 {[%clk 0:00:08]}  Kd7 {[%clk 0:00:09]} 47. Rc7+ {[%clk 0:00:08]}  Kxd6 {[%clk 0:00:10]} 48. Rxh7 {[%clk 0:00:09]}  Ra4 {[%clk 0:00:10]} 49. g5 {[%clk 0:00:08]}  Ke6 {[%clk 0:00:09]} 50. Rh6+ {[%clk 0:00:03]}  Kf5 {[%clk 0:00:09]} 51. Rxb6 {[%clk 0:00:03]}  Rxa2 {[%clk 0:00:09]} 52. g6 {[%clk 0:00:02]}  Ra3+ {[%clk 0:00:09]} 53. Kf2 {[%clk 0:00:03]}  Ra2+ {[%clk 0:00:09]} 54. Kg3 {[%clk 0:00:03]}  Ra1 {[%clk 0:00:08]} 55. Kf3 {[%clk 0:00:02]}  Rg1 {[%clk 0:00:07]} 56. Rxa6 {[%clk 0:00:02]}  Rxg6 {[%clk 0:00:08]} 57. Rxg6 {[%clk 0:00:02]}  Kxg6 {[%clk 0:00:09]} 1/2-1/2


[Site "https://www.chess.com"]

[Event "Titled Tuesday Blitz October 04 Early 2022"]
[White "Kuzmin, Roman"]
[Black "Harvey, Marcus R"]
[WhiteFideId "44134932"]
[BlackFideId "400092"]
[WhiteElo "2197"]
[BlackElo "2457"]
[Result "0-1"]
[Round "11"]
[TimeControl "180+1"]
[Date "2022.10.04"]
[WhiteClock "0:00:03"]
[BlackClock "0:00:02"]

1. Nf3 {[%clk 0:03:00]}  d5 {[%clk 0:02:52]} 2. c4 {[%clk 0:03:01]}  e6 {[%clk 0:02:53]} 3. g3 {[%clk 0:03:00]}  Nf6 {[%clk 0:02:53]} 4. Bg2 {[%clk 0:02:59]}  dxc4 {[%clk 0:02:53]} 5. Qa4+ {[%clk 0:02:57]}  Nbd7 {[%clk 0:02:53]} 6. Qxc4 {[%clk 0:02:57]}  c5 {[%clk 0:02:51]} 7. O-O {[%clk 0:02:55]}  a6 {[%clk 0:02:51]} 8. Qc2 {[%clk 0:02:46]}  b6 {[%clk 0:02:50]} 9. Ne5 {[%clk 0:02:32]}  Nd5 {[%clk 0:02:45]} 10. Nxd7 {[%clk 0:02:17]}  Qxd7 {[%clk 0:02:43]} 11. Nc3 {[%clk 0:02:15]}  Bb7 {[%clk 0:02:43]} 12. Nxd5 {[%clk 0:02:15]}  Bxd5 {[%clk 0:02:43]} 13. Bxd5 {[%clk 0:02:14]}  exd5 {[%clk 0:02:41]} 14. d4 {[%clk 0:01:45]}  Be7 {[%clk 0:02:33]} 15. dxc5 {[%clk 0:01:43]}  bxc5 {[%clk 0:02:33]} 16. Be3 {[%clk 0:01:39]}  Rc8 {[%clk 0:02:33]} 17. Rfd1 {[%clk 0:01:37]}  O-O {[%clk 0:02:33]} 18. Rac1 {[%clk 0:01:37]}  Rc6 {[%clk 0:02:31]} 19. b3 {[%clk 0:01:35]}  Rd8 {[%clk 0:02:29]} 20. Bd2 {[%clk 0:01:34]}  Qg4 {[%clk 0:02:27]} 21. Ba5 {[%clk 0:01:33]}  Rd7 {[%clk 0:02:27]} 22. Kg2 {[%clk 0:01:18]}  Rh6 {[%clk 0:02:25]} 23. h4 {[%clk 0:01:07]}  Rxh4 {[%clk 0:02:22]} 24. Rh1 {[%clk 0:01:06]}  Rxh1 {[%clk 0:02:21]} 25. Rxh1 {[%clk 0:01:06]}  h6 {[%clk 0:02:20]} 26. Qd3 {[%clk 0:00:55]}  c4 {[%clk 0:02:15]} 27. Qe3 {[%clk 0:00:53]}  d4 {[%clk 0:02:09]} 28. Qe5 {[%clk 0:00:42]}  Bf6 {[%clk 0:02:04]} 29. Qe8+ {[%clk 0:00:40]}  Kh7 {[%clk 0:02:03]} 30. bxc4 {[%clk 0:00:40]}  Re7 {[%clk 0:02:03]} 31. Qc6 {[%clk 0:00:38]}  Rxe2 {[%clk 0:02:00]} 32. a4 {[%clk 0:00:29]}  d3 {[%clk 0:01:55]} 33. Qf3 {[%clk 0:00:25]}  Qxc4 {[%clk 0:01:44]} 34. Rd1 {[%clk 0:00:24]}  Bd4 {[%clk 0:01:25]} 35. Be1 {[%clk 0:00:10]}  Bb6 {[%clk 0:01:01]} 36. Kf1 {[%clk 0:00:05]}  Qe4 {[%clk 0:00:33]} 37. Qxe4+ {[%clk 0:00:02]}  Rxe4 {[%clk 0:00:34]} 38. a5 {[%clk 0:00:02]}  d2 {[%clk 0:00:27]} 39. Bxd2 {[%clk 0:00:02]}  Bc7 {[%clk 0:00:23]} 40. Rc1 {[%clk 0:00:02]}  Bd8 {[%clk 0:00:22]} 41. Rc6 {[%clk 0:00:03]}  Re6 {[%clk 0:00:22]} 42. Rc8 {[%clk 0:00:02]}  Bf6 {[%clk 0:00:20]} 43. Rc7 {[%clk 0:00:02]}  Kg6 {[%clk 0:00:20]} 44. Be3 {[%clk 0:00:02]}  Be5 {[%clk 0:00:19]} 45. Ra7 {[%clk 0:00:02]}  Bxg3 {[%clk 0:00:17]} 46. Bb6 {[%clk 0:00:03]}  Be5 {[%clk 0:00:14]} 47. Rxa6 {[%clk 0:00:03]}  Bd4 {[%clk 0:00:14]} 48. Kg2 {[%clk 0:00:03]}  Rf6 {[%clk 0:00:14]} 49. f3 {[%clk 0:00:03]}  h5 {[%clk 0:00:12]} 50. Kg3 {[%clk 0:00:04]}  Re6 {[%clk 0:00:07]} 51. Kg2 {[%clk 0:00:04]}  f6 {[%clk 0:00:07]} 52. Kg3 {[%clk 0:00:04]}  Rc6 {[%clk 0:00:06]} 53. Kg2 {[%clk 0:00:03]}  Kh6 {[%clk 0:00:06]} 54. Kg3 {[%clk 0:00:03]}  g6 {[%clk 0:00:06]} 55. f4 {[%clk 0:00:03]}  Rc3+ {[%clk 0:00:03]} 56. Kg2 {[%clk 0:00:03]}  Rc6 {[%clk 0:00:04]} 57. Kf3 {[%clk 0:00:03]}  f5 {[%clk 0:00:03]} 58. Ke2 {[%clk 0:00:04]}  h4 {[%clk 0:00:03]} 59. Kd3 {[%clk 0:00:03]}  Bg1 {[%clk 0:00:03]} 60. Ke2 {[%clk 0:00:03]}  Kh5 {[%clk 0:00:03]} 61. Kf3 {[%clk 0:00:03]}  Rc3+ {[%clk 0:00:02]} 62. Kg2 {[%clk 0:00:03]}  Bxb6 {[%clk 0:00:01]} 63. axb6 {[%clk 0:00:03]}  Rb3 {[%clk 0:00:02]} 0-1


[Site "https://www.chess.com"]

[Event "Titled Tuesday Blitz October 04 Early 2022"]
[White "Matinian, Nikita"]
[Black "Shimanov, Aleksandr"]
[WhiteFideId "24129100"]
[BlackFideId "4198603"]
[WhiteElo "2422"]
[BlackElo "2605"]
[Result "0-1"]
[Round "11"]
[TimeControl "180+1"]
[Date "2022.10.04"]
[WhiteClock "0:00:03"]
[BlackClock "0:00:45"]

1. e4 {[%clk 0:03:00]}  d5 {[%clk 0:03:00]} 2. exd5 {[%clk 0:03:00]}  Qxd5 {[%clk 0:03:01]} 3. Nc3 {[%clk 0:02:59]}  Qe5+ {[%clk 0:03:01]} 4. Be2 {[%clk 0:02:58]}  Bg4 {[%clk 0:03:01]} 5. d4 {[%clk 0:02:56]}  Bxe2 {[%clk 0:03:02]} 6. Ngxe2 {[%clk 0:02:56]}  Qa5 {[%clk 0:03:02]} 7. Bf4 {[%clk 0:02:54]}  e6 {[%clk 0:02:59]} 8. d5 {[%clk 0:02:48]}  Nd7 {[%clk 0:02:54]} 9. dxe6 {[%clk 0:02:47]}  fxe6 {[%clk 0:02:55]} 10. Qd3 {[%clk 0:02:29]}  O-O-O {[%clk 0:02:53]} 11. Qc4 {[%clk 0:02:28]}  e5 {[%clk 0:02:51]} 12. Be3 {[%clk 0:02:27]}  Ngf6 {[%clk 0:02:48]} 13. O-O {[%clk 0:02:25]}  Bc5 {[%clk 0:02:43]} 14. Bxc5 {[%clk 0:02:16]}  Qxc5 {[%clk 0:02:44]} 15. Qxc5 {[%clk 0:02:16]}  Nxc5 {[%clk 0:02:44]} 16. Rad1 {[%clk 0:02:16]}  c6 {[%clk 0:02:41]} 17. Ng3 {[%clk 0:02:14]}  Kc7 {[%clk 0:02:41]} 18. Rfe1 {[%clk 0:02:13]}  Rxd1 {[%clk 0:02:40]} 19. Rxd1 {[%clk 0:02:13]}  b5 {[%clk 0:02:34]} 20. a3 {[%clk 0:02:12]}  a5 {[%clk 0:02:33]} 21. Nf5 {[%clk 0:02:05]}  g6 {[%clk 0:02:31]} 22. Ne3 {[%clk 0:01:56]}  a4 {[%clk 0:02:28]} 23. f3 {[%clk 0:01:52]}  Re8 {[%clk 0:02:27]} 24. Kf2 {[%clk 0:01:44]}  Nfd7 {[%clk 0:02:24]} 25. Na2 {[%clk 0:01:28]}  e4 {[%clk 0:02:05]} 26. f4 {[%clk 0:01:20]}  Ne6 {[%clk 0:02:05]} 27. g3 {[%clk 0:01:18]}  c5 {[%clk 0:02:04]} 28. Nc3 {[%clk 0:01:12]}  Kc6 {[%clk 0:02:04]} 29. Nxe4 {[%clk 0:01:10]}  Nd4 {[%clk 0:02:04]} 30. Ng5 {[%clk 0:01:01]}  Nf6 {[%clk 0:02:03]} 31. c3 {[%clk 0:00:57]}  Nf5 {[%clk 0:01:45]} 32. Nxf5 {[%clk 0:00:58]}  gxf5 {[%clk 0:01:46]} 33. h3 {[%clk 0:00:57]}  b4 {[%clk 0:01:40]} 34. cxb4 {[%clk 0:00:49]}  cxb4 {[%clk 0:01:40]} 35. axb4 {[%clk 0:00:49]}  Kb5 {[%clk 0:01:35]} 36. Rd4 {[%clk 0:00:30]}  Rc8 {[%clk 0:01:34]} 37. Rd6 {[%clk 0:00:26]}  Nh5 {[%clk 0:01:31]} 38. Rd5+ {[%clk 0:00:22]}  Kxb4 {[%clk 0:01:31]} 39. Rxf5 {[%clk 0:00:22]}  Rc2+ {[%clk 0:01:30]} 40. Kf3 {[%clk 0:00:23]}  Rxb2 {[%clk 0:01:30]} 41. Ne4 {[%clk 0:00:18]}  a3 {[%clk 0:01:23]} 42. Rf7 {[%clk 0:00:12]}  a2 {[%clk 0:01:15]} 43. Rb7+ {[%clk 0:00:12]}  Kc4 {[%clk 0:01:14]} 44. Ra7 {[%clk 0:00:10]}  Kd4 {[%clk 0:01:03]} 45. Ra4+ {[%clk 0:00:06]}  Kd3 {[%clk 0:00:55]} 46. f5 {[%clk 0:00:07]}  Kc2 {[%clk 0:00:53]} 47. g4 {[%clk 0:00:05]}  Rb3+ {[%clk 0:00:53]} 48. Kf2 {[%clk 0:00:03]}  Kb2 {[%clk 0:00:46]} 49. gxh5 {[%clk 0:00:01]}  Ra3 {[%clk 0:00:46]} 50. Rb4+ {[%clk 0:00:02]}  Kc2 {[%clk 0:00:46]} 51. Rc4+ {[%clk 0:00:03]}  Kd3 {[%clk 0:00:47]} 52. Rc1 {[%clk 0:00:03]}  Kxe4 {[%clk 0:00:45]} 53. Ra1 {[%clk 0:00:03]}  Kxf5 {[%clk 0:00:45]} 54. Kg2 {[%clk 0:00:03]}  Kg5 {[%clk 0:00:45]} 55. Kh2 {[%clk 0:00:03]}  Kxh5 {[%clk 0:00:46]} 56. Kg2 {[%clk 0:00:03]}  Kh4 {[%clk 0:00:46]} 57. Kf2 {[%clk 0:00:03]}  Kxh3 {[%clk 0:00:45]} 0-1


[Site "https://www.chess.com"]

[Event "Titled Tuesday Blitz October 04 Early 2022"]
[White "Pakleza, Zbigniew"]
[Black "Melikhov, Evgeny V."]
[WhiteFideId "1119290"]
[BlackFideId "4122046"]
[WhiteElo "2411"]
[BlackElo "2169"]
[Result "1-0"]
[Round "11"]
[TimeControl "180+1"]
[Date "2022.10.04"]
[WhiteClock "0:00:03"]
[BlackClock "0:00:02"]

1. d4 {[%clk 0:03:00]}  Nf6 {[%clk 0:02:56]} 2. Nf3 {[%clk 0:03:00]}  d5 {[%clk 0:02:56]} 3. Bf4 {[%clk 0:03:00]}  c5 {[%clk 0:02:56]} 4. c3 {[%clk 0:03:01]}  Nc6 {[%clk 0:02:55]} 5. Nbd2 {[%clk 0:03:01]}  cxd4 {[%clk 0:02:54]} 6. cxd4 {[%clk 0:03:02]}  Bf5 {[%clk 0:02:52]} 7. e3 {[%clk 0:03:02]}  a6 {[%clk 0:02:48]} 8. Be2 {[%clk 0:02:55]}  e6 {[%clk 0:02:47]} 9. O-O {[%clk 0:02:44]}  Bd6 {[%clk 0:02:43]} 10. Bxd6 {[%clk 0:02:44]}  Qxd6 {[%clk 0:02:42]} 11. Nb3 {[%clk 0:02:44]}  Ne4 {[%clk 0:02:37]} 12. Rc1 {[%clk 0:02:40]}  O-O {[%clk 0:02:35]} 13. Nh4 {[%clk 0:02:39]}  Ne7 {[%clk 0:02:13]} 14. f3 {[%clk 0:02:30]}  Nf6 {[%clk 0:02:09]} 15. Nc5 {[%clk 0:02:24]}  Qb6 {[%clk 0:02:00]} 16. Qd2 {[%clk 0:02:03]}  Rfc8 {[%clk 0:01:35]} 17. Rc3 {[%clk 0:01:57]}  Rc7 {[%clk 0:01:29]} 18. Rfc1 {[%clk 0:01:54]}  Rac8 {[%clk 0:01:26]} 19. a3 {[%clk 0:01:46]}  Qa7 {[%clk 0:01:10]} 20. g4 {[%clk 0:01:37]}  Bg6 {[%clk 0:01:10]} 21. b4 {[%clk 0:01:11]}  Ne8 {[%clk 0:01:01]} 22. e4 {[%clk 0:00:36]}  dxe4 {[%clk 0:00:55]} 23. fxe4 {[%clk 0:00:37]}  Nd6 {[%clk 0:00:52]} 24. Nxg6 {[%clk 0:00:33]}  Nxg6 {[%clk 0:00:49]} 25. e5 {[%clk 0:00:27]}  Nb5 {[%clk 0:00:45]} 26. Bxb5 {[%clk 0:00:27]}  axb5 {[%clk 0:00:45]} 27. Kg2 {[%clk 0:00:24]}  b6 {[%clk 0:00:42]} 28. Ne4 {[%clk 0:00:17]}  Rxc3 {[%clk 0:00:39]} 29. Rxc3 {[%clk 0:00:18]}  Rxc3 {[%clk 0:00:39]} 30. Qxc3 {[%clk 0:00:17]}  Qb7 {[%clk 0:00:39]} 31. Qe3 {[%clk 0:00:15]}  Ne7 {[%clk 0:00:34]} 32. Qf3 {[%clk 0:00:14]}  Nd5 {[%clk 0:00:32]} 33. Nd6 {[%clk 0:00:14]}  Qe7 {[%clk 0:00:31]} 34. Kg3 {[%clk 0:00:13]}  h5 {[%clk 0:00:27]} 35. h4 {[%clk 0:00:08]}  hxg4 {[%clk 0:00:26]} 36. Qxg4 {[%clk 0:00:09]}  Qc7 {[%clk 0:00:16]} 37. Qf3 {[%clk 0:00:09]}  f5 {[%clk 0:00:13]} 38. Nxf5 {[%clk 0:00:06]}  Qc4 {[%clk 0:00:11]} 39. Ne3 {[%clk 0:00:01]}  Qxd4 {[%clk 0:00:09]} 40. Nxd5 {[%clk 0:00:01]}  exd5 {[%clk 0:00:08]} 41. Qf5 {[%clk 0:00:02]}  Qe3+ {[%clk 0:00:07]} 42. Kg4 {[%clk 0:00:02]}  Qe2+ {[%clk 0:00:07]} 43. Kg5 {[%clk 0:00:02]}  Qg2+ {[%clk 0:00:06]} 44. Qg4 {[%clk 0:00:02]}  Qd2+ {[%clk 0:00:06]} 45. Kf5 {[%clk 0:00:02]}  Qf2+ {[%clk 0:00:04]} 46. Ke6 {[%clk 0:00:02]}  Qf7+ {[%clk 0:00:03]} 47. Kd6 {[%clk 0:00:03]}  d4 {[%clk 0:00:03]} 48. e6 {[%clk 0:00:04]}  Qe8 {[%clk 0:00:03]} 49. e7 {[%clk 0:00:04]}  d3 {[%clk 0:00:02]} 50. Qe6+ {[%clk 0:00:03]}  Kh7 {[%clk 0:00:02]} 51. Qe4+ {[%clk 0:00:03]} 1-0


[Site "https://www.chess.com"]

[Event "Titled Tuesday Blitz October 04 Early 2022"]
[White "Zhao, Jun"]
[Black "Salinas Herrera, Pablo"]
[WhiteFideId "8602522"]
[BlackFideId "3407128"]
[WhiteElo "2547"]
[BlackElo "2550"]
[Result "1-0"]
[Round "11"]
[TimeControl "180+1"]
[Date "2022.10.04"]
[WhiteClock "0:00:04"]
[BlackClock "0:00:03"]

1. e4 {[%clk 0:02:58]}  c5 {[%clk 0:03:00]} 2. Nf3 {[%clk 0:02:58]}  e6 {[%clk 0:03:01]} 3. d4 {[%clk 0:02:58]}  cxd4 {[%clk 0:03:02]} 4. Nxd4 {[%clk 0:02:58]}  a6 {[%clk 0:03:02]} 5. Nc3 {[%clk 0:02:58]}  Qc7 {[%clk 0:03:02]} 6. Bd3 {[%clk 0:02:58]}  d6 {[%clk 0:03:01]} 7. O-O {[%clk 0:02:56]}  g6 {[%clk 0:03:02]} 8. Be3 {[%clk 0:02:55]}  Bg7 {[%clk 0:03:02]} 9. f4 {[%clk 0:02:55]}  Ne7 {[%clk 0:03:02]} 10. f5 {[%clk 0:02:54]}  Be5 {[%clk 0:02:35]} 11. fxe6 {[%clk 0:02:48]}  fxe6 {[%clk 0:02:34]} 12. Nce2 {[%clk 0:01:58]}  Nbc6 {[%clk 0:02:31]} 13. Qd2 {[%clk 0:01:58]}  Nxd4 {[%clk 0:02:26]} 14. Nxd4 {[%clk 0:01:54]}  Nc6 {[%clk 0:02:23]} 15. c3 {[%clk 0:01:53]}  Bd7 {[%clk 0:02:18]} 16. a4 {[%clk 0:01:46]}  Rf8 {[%clk 0:01:53]} 17. Nf3 {[%clk 0:01:41]}  O-O-O {[%clk 0:01:42]} 18. a5 {[%clk 0:01:38]}  Nxa5 {[%clk 0:01:29]} 19. Qf2 {[%clk 0:01:27]}  Nc4 {[%clk 0:01:29]} 20. Bxc4 {[%clk 0:01:07]}  Qxc4 {[%clk 0:01:30]} 21. Nxe5 {[%clk 0:01:08]}  dxe5 {[%clk 0:01:28]} 22. Qxf8 {[%clk 0:01:05]}  Rxf8 {[%clk 0:01:29]} 23. Rxf8+ {[%clk 0:01:05]}  Kc7 {[%clk 0:01:30]} 24. Rf7 {[%clk 0:01:02]}  Qxe4 {[%clk 0:01:27]} 25. Bf2 {[%clk 0:00:36]}  Qd5 {[%clk 0:01:11]} 26. c4 {[%clk 0:00:32]}  Qd3 {[%clk 0:01:02]} 27. Bg3 {[%clk 0:00:25]}  Kb6 {[%clk 0:00:52]} 28. Rf3 {[%clk 0:00:17]}  Qc2 {[%clk 0:00:32]} 29. Bxe5 {[%clk 0:00:14]}  Bc6 {[%clk 0:00:22]} 30. Bd4+ {[%clk 0:00:14]}  Kc7 {[%clk 0:00:22]} 31. Rf7+ {[%clk 0:00:14]}  Kd6 {[%clk 0:00:23]} 32. Rf2 {[%clk 0:00:07]}  Qxc4 {[%clk 0:00:22]} 33. Rd1 {[%clk 0:00:07]}  Bd5 {[%clk 0:00:22]} 34. Bc3 {[%clk 0:00:07]}  Qe4 {[%clk 0:00:22]} 35. Re1 {[%clk 0:00:07]}  Qg4 {[%clk 0:00:22]} 36. h3 {[%clk 0:00:07]}  Qc4 {[%clk 0:00:20]} 37. Be5+ {[%clk 0:00:07]}  Kc6 {[%clk 0:00:18]} 38. Kh2 {[%clk 0:00:08]}  b5 {[%clk 0:00:15]} 39. Ree2 {[%clk 0:00:07]}  Qd3 {[%clk 0:00:12]} 40. Rd2 {[%clk 0:00:06]}  Qe4 {[%clk 0:00:12]} 41. Rde2 {[%clk 0:00:07]}  Qd3 {[%clk 0:00:12]} 42. Rd2 {[%clk 0:00:07]}  Qe4 {[%clk 0:00:12]} 43. Rfe2 {[%clk 0:00:08]}  Qf5 {[%clk 0:00:12]} 44. Rc2+ {[%clk 0:00:06]}  Bc4 {[%clk 0:00:12]} 45. b3 {[%clk 0:00:06]}  a5 {[%clk 0:00:07]} 46. bxc4 {[%clk 0:00:06]}  b4 {[%clk 0:00:07]} 47. Bg3 {[%clk 0:00:04]}  b3 {[%clk 0:00:08]} 48. Rc3 {[%clk 0:00:01]}  a4 {[%clk 0:00:08]} 49. c5 {[%clk 0:00:02]}  Qd5 {[%clk 0:00:07]} 50. Rce3 {[%clk 0:00:02]}  Kb5 {[%clk 0:00:06]} 51. Rxe6 {[%clk 0:00:03]}  a3 {[%clk 0:00:05]} 52. c6 {[%clk 0:00:03]}  b2 {[%clk 0:00:05]} 53. c7 {[%clk 0:00:03]}  Qc4 {[%clk 0:00:05]} 54. R2e5+ {[%clk 0:00:02]}  Ka4 {[%clk 0:00:04]} 55. Re4 {[%clk 0:00:03]}  b1=Q {[%clk 0:00:02]} 56. Rxc4+ {[%clk 0:00:03]}  Kb5 {[%clk 0:00:02]} 57. c8=Q {[%clk 0:00:03]}  a2 {[%clk 0:00:03]} 58. Qc6+ {[%clk 0:00:04]} 1-0